bitfinex-derivatives/quotes_SOLF0:USTF0_20241026
["timestamp","ask_amount","ask_price","bid_price","bid_amount"]
[1729909115260,3.0693,163.14,163.07,3.0706]
[1729909115455,3.0693,163.14,163.08,5.02]
[1729909115851,3.0693,163.14,163.08,18.30317331]
[1729909116051,20.94577331,163.19,163.09,3.0702]
[1729909116052,3.0689,163.16,163.09,3.0702]
[1729909116256,1.2922,163.19,163.09,3.0702]
[1729909116457,0.91976989,163.18,163.08,18.30317331]
[1729909117058,1.2922,163.19,163.08,19.65897331]
[1729909117265,3.0688,163.17,163.1,3.07]
[1729909117664,1.2922,163.19,163.08,19.65897331]
[1729909118060,1.2922,163.19,163.1,13.28317331]
[1729909118261,3.0686,163.18,163.11,3.0698]
[1729909118569,1.2922,163.19,163.1,13.28317331]
[1729909119869,3.0689,163.16,163.1,13.28317331]
[1729909121065,1.2922,163.19,163.1,13.28317331]
[1729909121259,13.28317331,163.24,163.13,13.28317331]
[1729909121466,0.91991545,163.23,163.14,5.02]
[1729909121770,0.92006397,163.22,163.14,5.02]
[1729909121969,3.98796397,163.21,163.14,5.02]
[1729909122267,3.0679,163.21,163.14,5.02]
[1729909122670,3.0678,163.22,163.15,13.28317331]
[1729909123365,2.6214,163.25,163.15,13.28317331]
[1729909123570,0.92029253,163.24,163.15,13.28317331]
[1729909123765,1.3549,163.25,163.15,13.28317331]
[1729909123971,3.0674,163.24,163.17,16.35177331]
[1729909124469,3.0674,163.24,163.17,13.28317331]
[1729909128381,18.28317331,163.3,163.19,13.28317331]
[1729909128582,3.0672,163.25,163.2,5.0]
[1729909129287,1.2481,163.34,163.2,8.0681]
[1729909129288,3.067,163.27,163.2,8.0681]
[1729909129486,16.30627417,163.32,163.2,8.0681]
[1729909129487,16.30627417,163.32,163.22,13.28317331]
[1729909129687,0.92096327,163.31,163.22,13.28317331]
[1729909129884,3.0667,163.28,163.22,13.28317331]
[1729909130186,3.12132324,163.33,163.22,13.28317331]
[1729909130386,3.0665,163.29,163.22,13.28317331]
[1729909130576,13.28317331,163.33,163.22,13.28317331]
[1729909130577,16.38945625,163.33,163.22,13.28317331]
[1729909130887,3.0664,163.29,163.22,16.35087331]
[1729909132792,3.0664,163.29,163.23,1.2483]
[1729909133689,3.0662,163.31,163.24,16.35057331]
[1729909133890,0.92107318,163.3,163.24,13.28317331]
[1729909134086,0.92107318,163.29,163.24,5.0]
[1729909134291,0.92107318,163.28,163.24,5.0]
[1729909134487,0.92107318,163.27,163.24,5.0]
[1729909134684,13.28317331,163.31,163.24,5.0]
[1729909134990,0.92130792,163.3,163.24,5.0]
[1729909136390,3.0668,163.28,163.24,5.0]
[1729909136586,0.92130792,163.27,163.24,5.0]
[1729909137496,14.55967331,163.33,163.24,5.0]
[1729909137995,0.92117999,163.32,163.24,5.0]
[1729909139293,3.0664,163.29,163.24,5.0]
[1729909139594,1.2366,163.34,163.24,21.35047331]
[1729909139800,0.92137035,163.33,163.24,21.35047331]
[1729909139994,3.0662,163.31,163.24,18.28317331]
[1729909140294,14.54897331,163.35,163.25,3.0672]
[1729909140295,0.92137035,163.3,163.25,3.0672]
[1729909140499,14.54897331,163.35,163.24,18.28317331]
[1729909140792,0.92138683,163.34,163.24,18.28317331]
[1729909141191,0.92138683,163.34,163.26,13.28317331]
[1729909141390,1.2658,163.35,163.26,13.28317331]
[1729909141587,0.92142881,163.34,163.26,13.28317331]
[1729909141987,1.2658,163.35,163.26,13.28317331]
[1729909142194,3.0654,163.35,163.26,16.35017331]
[1729909142401,16.3969803,163.38,163.26,16.35017331]
[1729909142593,0.92151243,163.37,163.26,16.35017331]
[1729909143395,3.0657,163.33,163.26,16.35017331]
[1729909143593,13.28317331,163.38,163.27,3.0667]
[1729909143793,3.0651,163.36,163.31,13.28317331]
[1729909143996,3.0651,163.36,163.32,5.0]
[1729909144196,1.3231,163.41,163.32,5.0]
[1729909144402,3.0649,163.38,163.32,5.0]
[1729909144796,1.3231,163.41,163.32,5.0]
[1729909145000,0.92165644,163.4,163.32,5.0]
[1729909146295,3.0649,163.37,163.32,5.0]
[1729909149597,13.28317331,163.44,163.33,13.28317331]
[1729909149800,0.92162899,163.43,163.33,13.28317331]
[1729909150000,0.92162899,163.42,163.33,13.28317331]
[1729909150199,3.0646,163.39,163.33,13.28317331]
[1729909150505,13.28317331,163.42,163.3,14.61987331]
[1729909150803,13.28317331,163.39,163.31,5.0]
[1729909150999,3.0652,163.36,163.31,5.0]
[1729909151402,13.28317331,163.39,163.32,5.0]
[1729909151403,3.0653,163.35,163.32,5.0]
[1729909151898,3.0648,163.38,163.32,18.28317331]
[1729909152602,3.065,163.37,163.32,18.28317331]
[1729909153801,3.0647,163.39,163.32,18.28317331]
[1729909154210,3.0647,163.39,163.35,13.28317331]
[1729909154802,15.80397331,163.45,163.32,3.0658]
[1729909155000,13.28317331,163.39,163.28,1.3542]
[1729909155196,2.15952409,163.38,163.29,5.0]
[1729909155396,3.93661581,163.37,163.29,5.0]
[1729909155607,0.92162409,163.36,163.29,5.0]
[1729909155803,3.0661,163.31,163.3,5.0]
[1729909156609,1.2379,163.38,163.3,5.0]
[1729909156610,3.0659,163.32,163.3,5.0]
[1729909156803,4.31455364,163.38,163.3,5.0]
[1729909157004,0.9213784,163.37,163.3,5.0]
[1729909157408,14.20455171,163.37,163.3,5.0]
[1729909157601,0.9213784,163.36,163.3,5.0]
[1729909158406,0.9213784,163.35,163.3,5.0]
[1729909158705,0.9213784,163.34,163.3,5.0]
[1729909159010,0.9213784,163.33,163.3,5.0]
[1729909159197,0.9213784,163.32,163.3,5.0]
[1729909159402,3.0658,163.33,163.3,5.0]
[1729909159803,0.9213941,163.32,163.3,5.0]
[1729909160302,0.9213941,163.31,163.3,5.0]
[1729909160499,0.9213941,163.35,163.3,5.0]
[1729909160705,3.066,163.32,163.3,5.0]
[1729909160911,0.9213941,163.31,163.3,5.0]
[1729909161302,3.066,163.32,163.3,5.0]
[1729909162198,13.28317331,163.35,163.3,5.0]
[1729909162399,3.0661,163.31,163.3,5.0]
[1729909163813,4.31455364,163.38,163.3,5.0]
[1729909164006,0.92136406,163.37,163.3,5.0]
[1729909164708,3.0653,163.35,163.3,5.0]
[1729909164909,17.59772695,163.38,163.3,5.0]
[1729909165110,0.92136683,163.37,163.3,5.0]
[1729909166313,3.0657,163.33,163.3,5.0]
[1729909166908,3.0657,163.33,163.31,8.48899046]
[1729909167104,3.0651,163.36,163.32,8.48899046]
[1729909167410,3.0651,163.36,163.3,5.0]
[1729909167411,3.0651,163.36,163.34,8.48899046]
[1729909167614,3.065,163.37,163.34,8.48899046]
[1729909168109,1.2549,163.46,163.35,8.48899046]
[1729909168314,3.0644,163.4,163.37,8.48899046]
[1729909169110,8.8701,163.46,163.37,8.48899046]
[1729909169314,8.48899046,163.42,163.37,8.48899046]
[1729909170406,8.8701,163.46,163.35,5.0]
[1729909170407,13.25287777,163.45,163.35,5.0]
[1729909170609,0.92138546,163.44,163.35,5.0]
[1729909171615,3.0642,163.41,163.35,5.0]
[1729909172822,3.0642,163.41,163.36,13.25287777]
[1729909177112,8.3469403,163.52,163.35,5.0]
[1729909177322,3.0636,163.44,163.38,13.25287777]
[1729909177626,13.25287777,163.49,163.38,13.25287777]
[1729909177920,3.0634,163.45,163.38,13.25287777]
[1729909178115,0.92160283,163.44,163.38,13.25287777]
[1729909178310,1.292,163.48,163.38,13.25287777]
[1729909178517,0.9216146,163.47,163.38,13.25287777]
[1729909178717,0.9216146,163.47,163.41,13.25287777]
[1729909178915,3.0636,163.45,163.42,5.0]
[1729909179119,0.9216146,163.44,163.42,5.0]
[1729909179522,3.0636,163.45,163.42,5.0]
[1729909179719,3.063,163.48,163.42,5.0]
[1729909179921,0.92170629,163.47,163.42,5.0]
[1729909180121,0.92170806,163.46,163.42,5.0]
[1729909180316,0.92170806,163.45,163.42,5.0]
[1729909180818,0.92170806,163.44,163.42,5.0]
[1729909181025,13.25287777,163.49,163.42,5.0]
[1729909181223,0.92166376,163.48,163.42,5.0]
[1729909181431,3.0632,163.47,163.42,5.0]
[1729909181626,0.92166376,163.46,163.42,5.0]
[1729909181826,0.92166376,163.45,163.42,5.0]
[1729909182128,0.92166376,163.44,163.42,5.0]
[1729909182320,13.25287777,163.49,163.42,5.0]
[1729909182520,3.0634,163.46,163.42,5.0]
[1729909182723,0.92165461,163.45,163.42,5.0]
[1729909183519,3.0634,163.46,163.42,5.0]
[1729909183826,0.92166252,163.45,163.42,5.0]
[1729909185724,3.0636,163.45,163.42,5.0]
[1729909186329,0.92141811,163.44,163.42,5.0]
[1729909186928,0.92141811,163.44,163.39,5.0]
[1729909187128,0.92141811,163.43,163.39,5.0]
[1729909187425,0.92141811,163.42,163.39,5.0]
[1729909187626,0.92141811,163.41,163.39,5.0]
[1729909187932,0.92141811,163.4,163.39,5.0]
[1729909188130,0.92141811,163.47,163.39,5.0]
[1729909188429,0.92141811,163.46,163.39,5.0]
[1729909188630,0.92141811,163.45,163.39,5.0]
[1729909188831,0.92141811,163.44,163.39,5.0]
[1729909189023,0.92141811,163.43,163.39,5.0]
[1729909189221,0.92141811,163.42,163.39,5.0]
[1729909189428,0.92141811,163.41,163.39,5.0]
[1729909189633,0.92141811,163.4,163.39,5.0]
[1729909189834,0.92141811,163.43,163.39,5.0]
[1729909190025,0.92141811,163.42,163.4,13.25287777]
[1729909190226,0.92141811,163.41,163.4,13.25287777]
[1729909190528,0.92141811,163.43,163.4,13.25287777]
[1729909190724,0.92141811,163.42,163.4,13.25287777]
[1729909190928,0.92141811,163.41,163.4,13.25287777]
[1729909191126,0.92141811,163.43,163.4,13.25287777]
[1729909191328,0.92141811,163.42,163.4,13.25287777]
[1729909191630,0.92141811,163.41,163.4,13.25287777]
[1729909191831,0.92141811,163.47,163.4,13.25287777]
[1729909192032,8.3469403,163.62,163.46,13.25287777]
[1729909192234,1.2365,163.57,163.52,8.47637399]
[1729909192434,8.47637399,163.56,163.5,13.47637399]
[1729909192831,2.572,163.57,163.48,5.0]
[1729909192832,8.47637399,163.54,163.48,5.0]
[1729909193034,0.91478161,163.53,163.48,13.47637399]
[1729909193228,3.0626,163.51,163.48,13.47637399]
[1729909193427,0.91478161,163.5,163.48,13.47637399]
[1729909193628,0.91478161,163.5,163.48,8.47637399]
[1729909193828,0.91478161,163.5,163.42,1.349]
[1729909193829,3.0631,163.49,163.47,5.0]
[1729909194028,0.91478161,163.48,163.46,13.47637399]
[1729909194227,0.91478161,163.48,163.46,5.0]
[1729909195434,0.91464033,163.47,163.46,5.0]
[1729909195635,3.0631,163.49,163.46,5.0]
[1729909195636,0.91464033,163.48,163.46,5.0]
[1729909195936,0.91464033,163.47,163.46,5.0]
[1729909196939,0.91464033,163.47,163.45,5.0]
[1729909196940,3.0635,163.47,163.45,5.0]
[1729909197241,0.91464033,163.46,163.45,5.0]
[1729909197742,0.91464033,163.48,163.45,5.0]
[1729909198037,0.91464033,163.47,163.45,5.0]
[1729909198234,0.91464033,163.46,163.45,5.0]
[1729909198435,0.91464033,163.5,163.45,5.0]
[1729909198634,0.91464033,163.49,163.45,5.0]
[1729909198837,3.97784033,163.48,163.45,5.0]
[1729909199035,0.91464033,163.47,163.45,5.0]
[1729909199432,0.91465127,163.46,163.45,5.0]
[1729909199639,0.91465127,163.47,163.45,5.0]
[1729909199843,0.91465127,163.46,163.45,5.0]
[1729909200732,3.0635,163.47,163.45,5.0]
[1729909200939,1.3511,163.5,163.43,5.0]
[1729909201148,0.91495259,163.49,163.43,5.0]
[1729909201841,3.0635,163.47,163.43,5.0]
[1729909202030,0.91518729,163.46,163.43,5.0]
[1729909202643,3.0635,163.47,163.43,5.0]
[1729909202939,1.3511,163.5,163.44,13.23807987]
[1729909202940,0.91541452,163.46,163.44,13.23807987]
[1729909203134,1.3511,163.5,163.44,13.23807987]
[1729909203332,0.91550557,163.49,163.44,13.23807987]
[1729909203533,0.91550557,163.49,163.46,13.23807987]
[1729909203734,5.0,163.55,163.46,13.23807987]
[1729909203935,0.91565003,163.54,163.46,13.23807987]
[1729909204543,3.0627,163.51,163.46,13.23807987]
[1729909204740,0.91565003,163.5,163.46,13.23807987]
[1729909205641,0.91565003,163.49,163.46,13.23807987]
[1729909205845,3.0626,163.51,163.46,13.23807987]
[1729909206143,0.91570756,163.5,163.46,13.23807987]
[1729909206443,3.97850756,163.5,163.46,13.23807987]
[1729909206637,0.91570756,163.49,163.44,13.23807987]
[1729909206831,0.91570756,163.48,163.44,5.0]
[1729909207038,3.0633,163.48,163.44,5.0]
[1729909207339,13.23807987,163.52,163.44,5.0]
[1729909207534,0.91562562,163.51,163.44,5.0]
[1729909208440,3.063,163.49,163.44,5.0]
[1729909208745,0.91562562,163.48,163.44,18.23807987]
[1729909209044,0.91562562,163.47,163.44,18.23807987]
[1729909209245,0.91562562,163.46,163.44,18.23807987]
[1729909209436,13.3469403,163.55,163.44,18.23807987]
[1729909209744,0.91577318,163.54,163.44,18.23807987]
[1729909210040,0.9158639,163.53,163.5,13.23807987]
[1729909210245,0.9158639,163.52,163.5,18.23807987]
[1729909210431,0.9158639,163.51,163.5,18.23807987]
[1729909210634,0.9158639,163.54,163.5,18.23807987]
[1729909210841,8.3469403,163.56,163.5,18.23807987]
[1729909211041,0.91608061,163.55,163.5,18.23807987]
[1729909212541,0.91608061,163.54,163.5,18.23807987]
[1729909212742,0.91608061,163.53,163.5,18.23807987]
[1729909212938,0.91608061,163.52,163.5,18.23807987]
[1729909213137,8.3469403,163.57,163.5,18.23807987]
[1729909213339,3.97797975,163.56,163.5,18.23807987]
[1729909213546,0.91627975,163.55,163.5,18.23807987]
[1729909213844,3.0617,163.56,163.5,18.23807987]
[1729909214144,0.91635078,163.55,163.5,18.23807987]
[1729909214545,0.91659922,163.54,163.5,4.98]
[1729909214748,0.91659922,163.53,163.5,4.98]
[1729909214940,0.91659922,163.52,163.5,4.98]
[1729909215143,0.91659922,163.51,163.5,4.98]
[1729909215837,0.91659922,163.53,163.5,4.98]
[1729909216041,3.97919922,163.52,163.47,13.23807987]
[1729909216241,0.91659922,163.51,163.48,4.98]
[1729909216447,0.91659922,163.5,163.48,4.98]
[1729909216651,0.91659922,163.49,163.48,4.98]
[1729909217144,0.91659922,163.52,163.48,4.98]
[1729909217347,0.91659922,163.51,163.48,4.98]
[1729909217549,0.91659922,163.5,163.48,4.98]
[1729909217753,8.3469403,163.53,163.48,4.98]
[1729909217953,0.91668812,163.52,163.48,4.98]
[1729909218252,0.91668812,163.51,163.48,4.98]
[1729909218550,0.91668812,163.5,163.48,4.98]
[1729909218742,0.91668812,163.49,163.48,4.98]
[1729909218941,3.0626,163.52,163.48,4.98]
[1729909219147,0.91668812,163.51,163.48,4.98]
[1729909220255,0.91668812,163.51,163.49,13.23807987]
[1729909220446,0.91668812,163.5,163.49,13.23807987]
[1729909220647,2.5004,163.58,163.49,15.82607987]
[1729909221457,3.0618,163.56,163.49,18.88887987]
[1729909221657,2.5004,163.58,163.49,15.82607987]
[1729909221858,0.90952761,163.57,163.49,1.3103]
[1729909222049,3.0622,163.53,163.49,1.3103]
[1729909222353,0.90952761,163.52,163.44,4.98]
[1729909222554,3.063,163.49,163.44,4.98]
[1729909222746,0.90952761,163.48,163.44,4.98]
[1729909223351,0.90952761,163.47,163.44,4.98]
[1729909223558,0.90952761,163.46,163.44,4.98]
[1729909223858,0.90952761,163.45,163.44,4.98]
[1729909224153,3.063,163.49,163.44,4.98]
[1729909226059,3.062,163.54,163.48,13.23807987]
[1729909226364,0.90941445,163.53,163.49,4.98]
[1729909226562,0.90941445,163.52,163.49,4.98]
[1729909226766,25.44382017,163.6,163.49,4.98]
[1729909226967,5.50390552,163.59,163.49,4.98]
[1729909227261,0.90940444,163.58,163.49,4.98]
[1729909227459,3.0622,163.54,163.49,4.98]
[1729909227662,0.90940444,163.53,163.49,4.98]
[1729909229664,3.0622,163.54,163.49,4.98]
[1729909229867,0.90918354,163.53,163.49,4.98]
[1729909231363,12.2057403,163.6,163.49,8.0429]
[1729909231564,18.73811801,163.59,163.49,4.98]
[1729909231755,0.90914557,163.58,163.49,4.98]
[1729909231956,12.2057403,163.6,163.48,4.98]
[1729909231957,14.14722544,163.57,163.48,4.98]
[1729909232266,0.90914557,163.56,163.48,4.98]
[1729909232471,0.90914557,163.56,163.44,13.23807987]
[1729909232657,13.23807987,163.55,163.44,13.23807987]
[1729909232967,13.23807987,163.55,163.42,1.3103]
[1729909232968,13.23807987,163.53,163.43,4.98]
[1729909233169,2.25044557,163.52,163.43,4.98]
[1729909233372,3.0636,163.46,163.43,4.98]
[1729909233560,1.3413,163.52,163.43,4.98]
[1729909233757,1.3413,163.52,163.43,18.21807987]
[1729909233758,0.90881131,163.51,163.43,18.21807987]
[1729909234163,3.0633,163.48,163.43,18.21807987]
[1729909234568,3.0635,163.47,163.43,4.98]
[1729909234868,13.23807987,163.5,163.43,4.98]
[1729909235069,13.23807987,163.5,163.41,13.23807987]
[1729909235070,0.90880696,163.49,163.41,13.23807987]
[1729909235264,3.0637,163.46,163.41,18.21807987]
[1729909235664,13.23807987,163.5,163.41,18.21807987]
[1729909235858,0.90887299,163.49,163.41,18.21807987]
[1729909236570,3.0634,163.47,163.41,4.98]
[1729909236772,4.33826163,163.52,163.42,13.23807987]
[1729909236773,14.57937987,163.52,163.42,13.23807987]
[1729909237067,3.063,163.49,163.42,13.23807987]
[1729909237263,0.9089973,163.48,163.42,13.23807987]
[1729909237463,14.57937987,163.52,163.42,13.23807987]
[1729909237664,0.90915568,163.51,163.42,13.23807987]
[1729909238064,3.0628,163.5,163.42,16.30237987]
[1729909238567,3.0628,163.5,163.42,3.0643]
[1729909238776,0.90917661,163.49,163.42,16.30237987]
[1729909240375,3.0628,163.5,163.42,16.30237987]
[1729909241169,14.57937987,163.52,163.42,13.23807987]
[1729909241170,3.97194819,163.49,163.42,13.23807987]
[1729909241478,14.57937987,163.52,163.42,13.23807987]
[1729909241675,14.57937987,163.52,163.41,6.2644]
[1729909241676,0.90916103,163.51,163.44,3.0638]
[1729909241977,1.2541,163.54,163.45,13.23807987]
[1729909242169,0.90923527,163.53,163.46,4.98]
[1729909242764,3.0621,163.54,163.48,13.23807987]
[1729909243063,14.51227987,163.59,163.48,13.23807987]
[1729909243264,0.90941019,163.58,163.49,1.3021]
[1729909244072,0.90941019,163.58,163.5,13.23807987]
[1729909244273,14.46507987,163.61,163.51,4.98]
[1729909244469,0.90960153,163.6,163.51,4.98]
[1729909245264,3.0613,163.59,163.51,8.0424]
[1729909245665,13.23807987,163.61,163.53,13.23807987]
[1729909245873,0.9096803,163.6,163.53,13.23807987]
[1729909246065,3.9707803,163.6,163.53,13.23807987]
[1729909246264,0.9096803,163.59,163.53,13.23807987]
[1729909246668,0.9096803,163.58,163.53,13.23807987]
[1729909246869,3.0609,163.6,163.53,13.23807987]
[1729909247066,0.9096808,163.59,163.53,13.23807987]
[1729909249375,3.0609,163.6,163.53,13.23807987]
[1729909249676,0.90968248,163.59,163.53,13.23807987]
[1729909249979,0.90969011,163.58,163.53,13.23807987]
[1729909250279,3.0609,163.6,163.53,13.23807987]
[1729909250488,3.97080231,163.59,163.53,13.23807987]
[1729909250677,3.0611,163.59,163.53,13.23807987]
[1729909250877,0.90970466,163.58,163.53,13.23807987]
[1729909251183,3.0611,163.59,163.53,13.23807987]
[1729909251382,0.90969964,163.58,163.53,13.23807987]
[1729909251587,3.0609,163.6,163.53,13.23807987]
[1729909251784,0.90970762,163.59,163.53,13.23807987]
[1729909251972,0.90970762,163.59,163.55,13.23807987]
[1729909252173,1.2742,163.64,163.56,4.98]
[1729909252374,0.90981042,163.63,163.56,4.98]
[1729909253386,3.97041935,163.62,163.56,4.98]
[1729909253680,1.2993,163.65,163.56,4.98]
[1729909253979,0.90984475,163.64,163.57,13.23807987]
[1729909254582,0.90984475,163.64,163.56,19.53347987]
[1729909255393,3.0604,163.63,163.56,22.59517987]
[1729909255578,0.90984475,163.62,163.56,22.59517987]
[1729909256082,0.90984475,163.62,163.56,19.53347987]
[1729909256494,3.97044475,163.62,163.56,19.53347987]
[1729909256683,3.0606,163.62,163.56,19.53347987]
[1729909257385,16.29551181,163.66,163.56,19.53347987]
[1729909257591,0.90987107,163.65,163.56,19.53347987]
[1729909259684,0.90987107,163.65,163.57,2.5352]
[1729909260291,3.0604,163.63,163.57,2.5352]
[1729909260485,0.90987107,163.62,163.57,2.5352]
[1729909260686,0.90987107,163.62,163.56,1.3154]
[1729909260893,0.90983595,163.61,163.57,4.98]
[1729909261095,13.23807987,163.63,163.57,4.98]
[1729909261096,0.90983595,163.6,163.57,4.98]
[1729909261287,3.0604,163.63,163.57,4.98]
[1729909261590,13.23807987,163.65,163.57,4.98]
[1729909261591,0.90982344,163.62,163.58,13.23807987]
[1729909261789,19.53357987,163.7,163.58,13.23807987]
[1729909262097,3.0599,163.66,163.58,16.29927987]
[1729909262282,0.9099433,163.65,163.58,13.23807987]
[1729909262487,14.55357987,163.7,163.6,13.23807987]
[1729909262488,0.9099433,163.64,163.6,13.23807987]
[1729909262687,3.0596,163.67,163.6,13.23807987]
[1729909262888,0.9100206,163.66,163.6,13.23807987]
[1729909263695,0.9100206,163.66,163.62,13.23807987]
[1729909263895,3.0594,163.69,163.63,4.98]
[1729909264199,0.91045491,163.68,163.63,4.98]
[1729909266606,3.0595,163.68,163.63,4.98]
[1729909267206,3.0595,163.68,163.63,6.2104]
[1729909268306,3.0593,163.69,163.63,9.2707]
[1729909268509,0.91155858,163.68,163.64,13.23807987]
[1729909268696,14.54447987,163.74,163.64,13.23807987]
[1729909268902,3.0591,163.7,163.64,13.23807987]
[1729909269097,0.91154301,163.69,163.62,6.305]
[1729909269296,0.91154301,163.69,163.59,4.98]
[1729909269297,0.91154301,163.68,163.59,4.98]
[1729909269904,3.97181737,163.68,163.59,4.98]
[1729909270099,14.14962288,163.67,163.58,13.23807987]
[1729909270301,13.23807987,163.65,163.52,1.2967]
[1729909270507,13.23807987,163.65,163.54,13.23807987]
[1729909270508,0.91154301,163.64,163.54,13.23807987]
[1729909270903,3.0609,163.61,163.54,13.23807987]
[1729909271110,16.37581015,163.65,163.54,13.23807987]
[1729909271299,0.91097145,163.64,163.54,13.23807987]
[1729909271503,3.0608,163.61,163.54,13.23807987]
[1729909272206,3.06,163.65,163.57,3.0615]
[1729909272506,3.06,163.65,163.56,13.23807987]
[1729909272507,0.91109355,163.64,163.58,4.98]
[1729909272707,0.91109355,163.63,163.58,4.98]
[1729909272920,3.0601,163.65,163.58,4.98]
[1729909273109,0.91109195,163.64,163.58,4.98]
[1729909273419,17.64961785,163.67,163.58,4.98]
[1729909273420,0.91109195,163.63,163.58,4.98]
[1729909273605,14.52627987,163.67,163.58,4.98]
[1729909273807,0.91108893,163.66,163.58,4.98]
[1729909274014,3.0603,163.64,163.58,4.98]
[1729909274216,0.91108893,163.63,163.58,4.98]
[1729909274515,3.0598,163.66,163.59,13.23807987]
[1729909274720,0.91119287,163.65,163.59,14.50217987]
[1729909275411,3.97139287,163.65,163.59,14.50217987]
[1729909275610,13.23807987,163.69,163.59,14.50217987]
[1729909275611,0.91119287,163.64,163.59,14.50217987]
[1729909275816,0.91118832,163.63,163.59,14.50217987]
[1729909276013,13.23807987,163.69,163.59,14.50217987]
[1729909276213,0.91118344,163.68,163.59,14.50217987]
[1729909276405,0.91118935,163.67,163.59,14.50217987]
[1729909276610,0.91118935,163.66,163.59,14.50217987]
[1729909276809,0.91118935,163.65,163.59,14.50217987]
[1729909277010,0.91118935,163.64,163.59,14.50217987]
[1729909277616,13.23807987,163.69,163.59,14.50217987]
[1729909277617,0.91118935,163.63,163.59,14.50217987]
[1729909277814,0.91118935,163.62,163.59,14.50217987]
[1729909278017,13.23807987,163.69,163.59,14.50217987]
[1729909278206,3.06,163.65,163.59,14.50217987]
[1729909278415,0.91119751,163.64,163.59,14.50217987]
[1729909279821,0.91129278,163.63,163.59,14.50217987]
[1729909280116,0.91129278,163.62,163.59,14.50217987]
[1729909280316,3.06,163.65,163.59,14.50217987]
[1729909280317,13.23807987,163.69,163.59,14.50217987]
[1729909280517,3.0602,163.64,163.59,14.50217987]
[1729909280723,0.91137575,163.63,163.59,14.50217987]
[1729909281416,0.91137575,163.63,163.56,4.98]
[1729909281611,0.91137575,163.62,163.56,4.98]
[1729909281810,0.91137575,163.61,163.56,4.98]
[1729909282014,0.91137575,163.6,163.56,4.98]
[1729909282213,0.91137575,163.59,163.56,4.98]
[1729909282418,3.0611,163.6,163.56,4.98]
[1729909282619,0.91209672,163.59,163.56,4.98]
[1729909283516,1.2225,163.66,163.56,4.98]
[1729909283517,3.0604,163.63,163.57,13.23807987]
[1729909283718,0.91246019,163.62,163.57,13.23807987]
[1729909284119,3.0604,163.63,163.57,13.23807987]
[1729909285124,13.23807987,163.68,163.57,13.23807987]
[1729909285318,0.91257283,163.66,163.57,13.23807987]
[1729909286214,3.0606,163.62,163.57,13.23807987]
[1729909287020,13.23807987,163.68,163.57,13.23807987]
[1729909287217,14.15020321,163.66,163.55,13.23807987]
[1729909287411,3.0613,163.59,163.53,14.55367987]
[1729909287616,13.23807987,163.64,163.55,4.98]
[1729909287922,0.91197604,163.63,163.55,4.98]
[1729909288319,0.91196247,163.62,163.55,4.98]
[1729909288524,3.0612,163.59,163.55,4.98]
[1729909289021,3.0612,163.59,163.53,14.55367987]
[1729909289022,3.0612,163.59,163.53,13.23807987]
[1729909289218,2.5312,163.63,163.53,13.23807987]
[1729909289410,0.91253747,163.62,163.53,18.21807987]
[1729909290021,3.0613,163.59,163.53,18.21807987]
[1729909290818,3.061,163.6,163.55,13.23807987]
[1729909291018,2.5312,163.63,163.55,13.23807987]
[1729909291325,0.91310361,163.62,163.55,13.23807987]
[1729909291521,2.5312,163.63,163.55,13.23807987]
[1729909291718,0.91317811,163.62,163.55,13.23807987]
[1729909292123,0.91317811,163.62,163.53,18.21807987]
[1729909293222,0.91317811,163.62,163.53,13.23807987]
[1729909293423,3.0614,163.58,163.53,18.21807987]
[1729909293816,3.0614,163.58,163.53,13.23807987]
[1729909294019,3.0614,163.58,163.53,18.21807987]
[1729909294427,3.0619,163.55,163.5,4.98]
[1729909294625,13.23807987,163.59,163.5,4.98]
[1729909294929,0.91261137,163.58,163.5,4.98]
[1729909295430,3.0619,163.55,163.5,4.98]
[1729909296424,13.23807987,163.59,163.5,4.98]
[1729909296725,0.91205772,163.58,163.5,4.98]
[1729909297928,0.91205772,163.58,163.51,3.0624]
[1729909298124,0.91205772,163.58,163.5,18.21807987]